Cogmind - Beta 10.2 @@@ ROGUE MODE // 2021.11.27 @ 21:30:17 Player: BombSite_A Result: Destroyed by D-53 Grenadier with Mini Grenade Launcher Performance ------------- Evolutions (1) 500 Regions Visited (4) 800 Robots Destroyed (9) 45 Value Destroyed (221) 221 Prototype IDs (0) 0 Alien Tech Used (0) 0 Bonus (0) 0 TOTAL SCORE: 1566 Bonus ------- None Cogmind --------- Core Integrity 0/400 Matter 267/300 Energy 98/100 System Corruption 3% Temperature Cool (0) Movement Core (50) Location -9/Mines Parts ------- > --- POWER (2) -------- (None) > --- PROPULSION (2) --- (None) > --- UTILITY (2) ------ (None) > --- WEAPON (3) ------- (None) > --- INVENTORY (4) ---- Light Nuclear Core Advanced Weight Redist. System Structural Scanner Peak State ------------ > --- POWER ------------ Light Ion Engine Light Nuclear Core > --- PROPULSION ------- Aluminum Leg Aluminum Leg > --- UTILITY ---------- Sensor Array Advanced Signal Interpreter > --- WEAPON ----------- Particle Cannon Light Assault Rifle Grenade Launcher > --- INVENTORY -------- Light Nuclear Core Advanced Weight Redist. System Structural Scanner [Rating: 14] Favorites ----------- Power Ion Engine Engine Ion Engine Power Core Light Nuclear Core Propulsion Aluminum Leg Leg Aluminum Leg Utility Small Storage Unit Device Sensor Array Storage Small Storage Unit Processor Advanced Signal Interpreter Weapon Light Assault Rifle Energy Gun Small Laser Energy Cannon Particle Cannon Ballistic Gun Light Assault Rifle Launcher Grenade Launcher Build | -11 -10 -10 -9 -9 ------- Run | Scr Mat Min Mat Min Slots Evolved 2 | . . . 2 . Power 1 | . . . 1 . Propulsion . | . . . . . Utility . | . . . . . Weapon 1 | . . . 1 . Parts Attached 18 | 6 1 2 8 1 Power 4 | 1 . . 2 1 Engine 2 | 1 . . 1 . Core 2 | . . . 1 1 Reactor . | . . . . . Propulsion 2 | 2 . . . . Treads . | . . . . . Leg 2 | 2 . . . . Wheel . | . . . . . Hover . | . . . . . Flight . | . . . . . Utility 5 | 1 1 . 3 . Device 2 | . . . 2 . Storage 2 | 1 1 . . . Processor 1 | . . . 1 . Hackware . | . . . . . Protection . | . . . . . Artifact . | . . . . . Weapon 7 | 2 . 2 3 . Energy Gun 3 | 1 . 1 1 . Energy Cannon 1 | . . . 1 . Ballistic Gun 2 | 1 . . 1 . Ballistic Cannon . | . . . . . Launcher 1 | . . 1 . . Special Weapon . | . . . . . Impact Weapon . | . . . . . Slashing Weapon . | . . . . . Piercing Weapon . | . . . . . Special Melee Weapon . | . . . . . Unidentified Prototypes . | . . . . . Parts Lost 11 | . . 1 10 . Power 2 | . . . 2 . Propulsion 2 | . . . 2 . Utility 2 | . . . 2 . Weapon 5 | . . 1 4 . Highest Loss Streak 6 | . . 1 6 . Average Slot Usage (%) 82 | . 88 98 83 . Engine 11 | . 14 14 11 . Core 4 | . . . 9 . Leg 21 | . 28 28 17 . Device 4 | . . . 10 . Storage 11 | . 17 28 1 . Processor 4 | . . . 10 . Energy Gun 5 | . 14 4 3 . Energy Cannon 1 | . . . 4 . Ballistic Gun 10 | . 14 14 9 . Launcher 5 | . . 7 7 . Naked Turns 48 | . . . . 48 Heaviest Build 19 | 11 13 15 19 . Greatest Support 20 | 20 20 20 20 3 Greatest Overweight (x) 1 | 1 . . 1 . Average Overweight (x) . | . . . . . Largest Inventory Capacity 6 | 6 6 6 6 4 Average Capacity 5 | 5 6 6 4 4 Most Carried 6 | 6 6 6 4 3 Average Carried 4 | 3 5 5 3 2 Final Capacity 6 | 6 6 6 4 4 Final Carried 6 | 6 6 5 3 3 Class Distribution -------------------- 71% | Mutant 28% | Skirmisher Dominant Class ---------------- Mutant | -10/Materials Mutant | -10/Mines Skirmisher | -9/Materials Mutant | -9/Mines Resources | -11 -10 -10 -9 -9 ----------- Run | Scr Mat Min Mat Min Matter Collected 363 | 203 . 87 73 . Remotely . | . . . . . Salvage Created 182 | . 37 66 79 . Parts 19 | . 3 1 15 . Haulers Intercepted . | . . . . . Recyclers Shooed . | . . . . . Parts Field Recycled . | . . . . . Retrieved Matter . | . . . . . Parts Self-Destructed . | . . . . . Prevented . | . . . . . Kills | -11 -10 -10 -9 -9 ------- Run | Scr Mat Min Mat Min Combat Hostiles Destroyed 7 | . 1 2 4 . Guns 2 | . 1 1 . . Cannons 1 | . . . 1 . AOE 4 | . . 1 3 . Classes Destroyed 5 | . 1 . 4 . Builder 1 | . . . 1 . Watcher 1 | . . . 1 . Swarmer 3 | . . . 3 . Grunt 3 | . 1 2 . . Sentry 1 | . . . 1 . Best Kill Streak 3 | . 1 1 3 . Combat Bots Only 3 | . 1 1 3 . Max Kills in Single Turn 2 | . 1 1 2 . Gunslinging . | . . . . . Exploded 1 | . . 1 1 . Melee . | . . . . . Uniques/NPCs Destroyed . | . . . . . Combat | -11 -10 -10 -9 -9 -------- Run | Scr Mat Min Mat Min Damage Taken 1204 | . 12 232 769 191 Core 444 | . . 30 223 191 Absorbed by Shields . | . . . . . Core Remaining (%) 94 | 100 . 88 . . Volleys Fired 41 | . 7 19 15 . Largest 3 | . 2 2 3 . Hottest 118 | . 60 60 118 . Shots Fired 73 | . 12 30 31 . Gun 59 | . 12 27 20 . Cannon 6 | . . . 6 . Launcher 8 | . . 3 5 . Special . | . . . . . Kinetic 41 | . 7 19 15 . Thermal 24 | . 5 8 11 . Explosive 8 | . . 3 5 . Electromagnetic . | . . . . . Robot Hit Streak 4 | . 3 4 4 . Robot Miss Streak 3 | . 1 2 3 . Penetration Max . | . . . . . Secondary Targets . | . . . . . Shots Hit Robots 36 | . 6 18 12 . Core Hits 29 | . 3 5 21 . Critical Hits 1 | . . 1 . . Critical Kills . | . . . . . Critical Parts Destroyed 1 | . . 1 . . Melee Attacks . | . . . . . Impact . | . . . . . Slashing . | . . . . . Piercing . | . . . . . Sneak Attacks . | . . . . . Combat Hostiles . | . . . . . Follow-up Attacks . | . . . . . Damage Inflicted 704 | . 44 214 446 . Guns 292 | . 44 130 118 . Cannons 61 | . . . 61 . Explosions 330 | . . 84 246 . Melee . | . . . . . Ramming 21 | . . . 21 . Kinetic 228 | . 22 98 108 . Thermal 125 | . 22 32 71 . Explosive 330 | . . 84 246 . Electromagnetic . | . . . . . Impact . | . . . . . Slashing . | . . . . . Piercing . | . . . . . Highest Corruption 3 | . . . 3 3 Average Corruption 2 | . . . 2 3 Corruption Purged . | . . . . . Overload Shots . | . . . . . Overflow Damage 47 | . . 27 20 . Projectiles . | . . . . . Explosions 47 | . . 27 20 . Melee . | . . . . . Knockbacks . | . . . . . Impact . | . . . . . Kinetic . | . . . . . Secondary . | . . . . . Self-Inflicted Damage 4 | . . . 4 . Shots . | . . . . . Rammed 15 | . . . 15 . Targets Rammed 16 | . . . 16 . Kicked 1 | . . . 1 . Crushed . | . . . . . Highest Temperature 247 | . 20 85 247 . Average Temperature 64 | . 14 28 90 . Received Heat Transfer 396 | . 6 135 225 30 Siege Activations . | . . . . . Robots Corrupted . | . . . . . Combat Hostiles . | . . . . . Parts Fried . | . . . . . Impact Corruptions . | . . . . . Robots Melted . | . . . . . Combat Hostiles . | . . . . . Parts Melted . | . . . . . Heat Transferred 261 | . 50 75 136 . Parts Sabotaged . | . . . . . Parts Stolen . | . . . . . Parts Stripped . | . . . . . Power Chain Reactions . | . . . . . Missiles Intercepted . | . . . . . Alert | -11 -10 -10 -9 -9 ------- Run | Scr Mat Min Mat Min Peak Influence 179 | . 50 59 179 114 Initial 54 | . . 19 22 54 Average 69 | . 27 44 116 82 Maximum Alert Level . | . . . . . Low Security (%) 100 | 100 100 100 100 100 Level 1 . | . . . . . Level 2 . | . . . . . Level 3 . | . . . . . Level 4 . | . . . . . Level 5 . | . . . . . High Security . | . . . . . Max Security . | . . . . . Squads Dispatched 3 | . 2 . 1 . Investigation . | . . . . . Extermination . | . . . . . Reinforcement 3 | . 2 . 1 . Assault . | . . . . . Garrison . | . . . . . Intercept . | . . . . . Construction Impeded 1 | . . . 1 . Haulers Reinforced . | . . . . . Stealth | -11 -10 -10 -9 -9 --------- Run | Scr Mat Min Mat Min Distress Signals 2 | . . . 2 . Communications Jammed . | . . . . . Distress Signals . | . . . . . Times Spotted 39 | . 3 2 24 10 Peak Tracking Total 17 | . 2 2 17 6 Tactical Retreats 2 | . . . 1 1 Traps | -11 -10 -10 -9 -9 ------- Run | Scr Mat Min Mat Min Traps Triggered . | . . . . . Indirectly . | . . . . . Trap Hack Attempts . | . . . . . Triggered . | . . . . . Disarmed . | . . . . . Reprogrammed . | . . . . . Reused . | . . . . . Traps Extracted . | . . . . . Installed . | . . . . . Triggered . | . . . . . Machines | -11 -10 -10 -9 -9 ---------- Run | Scr Mat Min Mat Min Machines Disabled 1 | . . . 1 . Max in Single Turn 1 | . . . 1 . Machines Sabotaged . | . . . . . Garrisons Compromised . | . . . . . Overloaded Fab Kills . | . . . . . Fab Network Shutdowns . | . . . . . Hacking | -11 -10 -10 -9 -9 --------- Run | Scr Mat Min Mat Min Machines Accessed . | . . . . . Terminals . | . . . . . Fabricators . | . . . . . Repair Stations . | . . . . . Recycling Units . | . . . . . Scanalyzers . | . . . . . Garrison Access . | . . . . . Total Hacks . | . . . . . Successful . | . . . . . Failed . | . . . . . Catastrophic . | . . . . . Database Lockouts . | . . . . . Manual . | . . . . . Terminals . | . . . . . Fabricators . | . . . . . Repair Stations . | . . . . . Recycling Units . | . . . . . Scanalyzers . | . . . . . Garrison Access . | . . . . . Terminal Hacks . | . . . . . Fabricator Hacks . | . . . . . Repair Station Hacks . | . . . . . Recycling Unit Hacks . | . . . . . Scanalyzer . | . . . . . Garrison Access Hacks . | . . . . . Unauthorized Hacks . | . . . . . Terminals . | . . . . . Fabricators . | . . . . . Repair Stations . | . . . . . Recycling Units . | . . . . . Scanalyzers . | . . . . . Garrison Access . | . . . . . Data Cores Recovered . | . . . . . Used . | . . . . . Hacking Detections . | . . . . . Full Trace Events . | . . . . . Feedback Events . | . . . . . Feedback Blocked . | . . . . . Robot Schematics Acquired . | . . . . . Robots Built . | . . . . . Matter . | . . . . . Time . | . . . . . Total Robot Build Rating . | . . . . . Part Schematics Acquired . | . . . . . Parts Built . | . . . . . Matter . | . . . . . Time . | . . . . . Total Part Build Rating . | . . . . . Parts Repaired . | . . . . . Time . | . . . . . Parts Recycled . | . . . . . Recycled Matter . | . . . . . Retrieved Matter . | . . . . . Retrieved Components . | . . . . . Parts Scanalyzed . | . . . . . Part Schematics Acquired . | . . . . . Parts Damaged . | . . . . . Bothacking | -11 -10 -10 -9 -9 ------------ Run | Scr Mat Min Mat Min Used RIF Installer . | . . . . . Robots Hacked . | . . . . . Non-combat . | . . . . . Combat . | . . . . . Robot Hacks Applied . | . . . . . Relay Couplers Released . | . . . . . Robots Rewired . | . . . . . Allies Hacked . | . . . . . Hacks Repelled . | . . . . . Allies | -11 -10 -10 -9 -9 -------- Run | Scr Mat Min Mat Min Total Allies . | . . . . . Largest Group . | . . . . . Highest-Rated Group . | . . . . . Highest-Rated Ally . | . . . . . Total Orders . | . . . . . Ally Attacks . | . . . . . Total Damage . | . . . . . Kills . | . . . . . Allies Corrupted . | . . . . . Allies Melted . | . . . . . Intel | -11 -10 -10 -9 -9 ------- Run | Scr Mat Min Mat Min Robot Analysis Total . | . . . . . Derelict Logs Recovered 1 | . . . . 1 Drone Launches . | . . . . . Drone Recoveries . | . . . . . Exploration | -11 -10 -10 -9 -9 ------------- Run | Scr Mat Min Mat Min Turns Passed 837 | 86 171 172 359 49 Spaces Moved 614 | 61 110 104 244 95 Core 131 | 5 . . 31 95 Treads . | . . . . . Legs 483 | 56 110 104 213 . Wheels . | . . . . . Hover . | . . . . . Flight . | . . . . . Fastest Speed 50 | 50 120 120 50 50 Average Speed 107 | 116 120 120 115 50 Slowest Speed 150 | 120 120 120 150 50 Overloaded Moves . | . . . . . Propulsion Burnouts . | . . . . . Robots Hopped . | . . . . . Cave-ins Triggered . | . . . . . Exploration Rate (%) 21 | 4 30 26 29 19 Regions Visited 4 Branch Regions 2 Pre-discovered Areas . | . . . . . Known Exits Taken . | . . . . . Unknown Exits Taken 4 | 1 1 1 1 . Scrap Searched 1 | . . 1 . . Spaces Dug . | . . . . . Terrain Destroyed 38 | . . 19 19 . Melee . | . . . . . Projectile . | . . . . . AOE 38 | . . 19 19 . Terrain Rammed . | . . . . . Walls Destroyed . | . . . . . Machines Disabled . | . . . . . Actions | -11 -10 -10 -9 -9 --------- Run | Scr Mat Min Mat Min Total 731 | 73 139 125 297 97 Wait 18 | . 18 . . . Move 610 | 60 109 103 243 95 Hop . | . . . . . Pick Up 15 | 7 2 . 6 . Fast Attach 10 | 5 1 1 3 . Attach 8 | 1 . 1 5 1 Detach 2 | . . . 1 1 Swap . | . . . . . Drop 11 | . 2 1 8 . Fire 41 | . 7 19 15 . Melee . | . . . . . Ram 11 | . . . 11 . Kick 5 | . . . 5 . Crush . | . . . . . Escape Stasis . | . . . . . Rewire . | . . . . . Trap . | . . . . . Miscellaneous . | . . . . . Route ------- -11/Scrapyard -10/Materials -10/Mines -9/Materials -9/Mines History --------- Turn | Location | Event 16 | -11/Scrapyard | Discovered new exit (range 15) 87 | -11/Scrapyard | Entered Materials 243 | -10/Materials | Discovered new exit (range 9) 258 | -10/Materials | Entered Mines 318 | -10/Mines | Build established: Mutant 350 | -10/Mines | Met a Derelict bent on vengeance 417 | -10/Mines | Discovered new exit (range 11) 430 | -10/Mines | Entered Materials 430 | -9/Materials | Evolved 2 slots: Power x1, Weapon x1 705 | -9/Materials | Lost 4 parts (1n3w) 778 | -9/Materials | Core integrity fell below 50% 783 | -9/Materials | Discovered new exit (range 12) 789 | -9/Materials | Entered Mines 807 | -9/Mines | Assembled infested the area 808 | -9/Mines | Learned 4 Materials zone layouts 812 | -9/Mines | Assisted by a Guerilla fighting off Assembled 820 | -9/Mines | Lost 6 parts (2p1n2u1w) 837 | -9/Mines | Core integrity fell below 20% 838 | -9/Mines | Destroyed by D-53 Grenadier with Mini Grenade Launcher Last Messages --------------- 00759_ Sensor Array temporarily disabled. 00760_ Slammed into G-34 Mercenary. 00762_ Slammed into A-02 Transporter. 00763_ A-02 Transporter sends out distress signal. 00764_ Slammed into A-02 Transporter. 00769_ Destabilizing: System corrupted (+1). 00770_ Slammed into A-02 Transporter. 00770_ Destabilizing: System corrupted (+2). 00771_ Slammed into A-02 Transporter. 00777_ Sensor Array destroyed. 00782_ Slammed into A-02 Transporter. 00783_ EXIT=FOUND 00787_ Adv. Signal Interpreter destroyed. 00789_ Lgt. Ion Engine destroyed. LOCATION=UNKNOWN GOAL=ESCAPE 00807_ ALERT: Infestation in the mines, dispatching Demolisher response squad. 00808_ Acquired derelict log, extracted data. Data stored: Materials zone layouts (x4). Map ----- +----------------------------------------------------+ | ???????????????????????????????????????????????? | | ??##############???????????????????????????????? | | ??# #???????????????????????????????? | | ??# ###########?????????????????????? | | ??# """ """ #?????????????????????? | | ??# """ """ #?????????????????????? | | ?#T """ """ ######## #?????????????????????? | | ??# #??????# #?????????????????????? | | ??# #??????# #?????????????????????? | | ??##############??????# #?????????????????????? | | ??????????????????????# #?????????????????????? | | ??????????????????????# #?????????????????????? | | ??????????????????????# #?????????????????????? | | ??????????????????????# #??????#??????????????? | | ??????????????????????# #????? ????????????? | | ???????????????######## ####? ????????????? | | ?????????????# gg ## ?????????? | | ???????????????###### # ?????????? | | ????????????????????# r #????????? | | ????????????????????# d d #?????????? | | ???????????????????## % #??????????? | | ???????????????????? # ####??????? | | ????????????????????? ????? ####???? | | ????????????????????## # #?????? # ???? | | ????????????????????# #??????? ????? | | ????????????????????# @ #????????? ?????? | | ????????????????????# #####?????? ??????? | | ????????????????????## aa #????## #???????? | | ?????????????????????## #### #????# #????????? | | ??????????????????????###??# #????# #????????? | | ???????????????????????????# #???## #????????? | | ???????????????????????????# #??## #?????????? | | ???????????????????????????# #### #??????????? | | ???????????????????????????# #######????? | | ???????????????????????????####### ## ##???? | | ?????????????????????????????????## ##??? | | ??????????????????????????????????## #??? | | ???????????????????????????????????####### #??? | | ?????????????????????????????????????????####??? | | ???????????????????????????????????????????????? | | ???????????????????????????????????????????????? | | ???????????????????????????????????????????????? | | ???????????????????????????????????????????????? | | ???????????????????????????????????????????????? | | ???????????????????????????????????????????????? | | ???????????????????????????????????????????????? | | ???????????????????????????????????????????????? | | ???????????????????????????????????????????????? | | ???????????????????????????????????????????????? | | ???????????????????????????????????????????????? | +----------------------------------------------------+ Best States ------------- Heat Dissipation 28 Energy Generation 19 Energy Capacity 275 Matter Stores 280 Matter Capacity 400 Sight Range 16 Robot Scan Range 10 Terrain Scan Density 10 Evasion (%) 50 Item Schematics ----------------- None Robot Schematics ------------------ None Fabricated ------------ Nothing Alien Tech Used ----------------- None Achievements -------------- None Challenges ------------ None Game ------ Seed LargeTrapNanosword Manual? 0 Play Time 00:26:14 Cumulative 5.7 hours Start 2021.11.27 @ 20:43:17 End 2021.11.27 @ 21:30:17 Sessions 1 Manual Loads 0 Difficulty Rogue Special Mode None Game No. 14 Rogue 14 Adventurer 0 Explorer 0 Win Type - Total 0 Types 0/0/0/0/0/0/0/0/0 Lore% 6 Gallery% 17 Achievement% 6 Wizard Run 0 Options --------- ASCII 1 Keyboard 1 Movement Numpad Keybinds 0 Fullscreen 1 Font 36/Smallcaps Map View 76x50 Tactical HUD 1 Map Filters NONE Filters NONE Steam 1 RUN: 313c6bdb-9114-4118-b85d-7b406b5efe71